fUST/lending_fUST_20250620
["ID","MTS","AMOUNT","RATE_DAILY","PERIOD"]
[366735286,1750425041194,-501.5,0.00020304,2]
[366735288,1750425041204,-432.78486083,0.00020305,2]
[366735290,1750425041214,-460.0,0.00020305,2]
[366735292,1750425041224,-460.0,0.00020305,2]
[366735294,1750425041233,-432.56217891,0.00020305,2]
[366735295,1750425041242,-460.0,0.00020305,2]
[366735296,1750425041252,-460.0,0.00020305,2]
[366735297,1750425041261,-460.0,0.00020305,2]
[366735298,1750425041271,-431.08777953,0.00020305,2]
[366735299,1750425041280,-460.0,0.00020305,2]
[366735300,1750425041290,-460.0,0.00020305,2]
[366735301,1750425041300,-460.0,0.00020305,2]
[366735302,1750425041309,-460.0,0.00020305,2]
[366735303,1750425041319,-505.65002185,0.00020305,2]
[366735304,1750425041328,-435.94995984,0.00020305,2]
[366735305,1750425041339,-460.0,0.00020305,2]
[366735306,1750425041349,-460.0,0.00020305,2]
[366735307,1750425041359,-500.0,0.00020305,2]
[366735308,1750425041369,-500.0,0.00020305,2]
[366735309,1750425041379,-500.0,0.00020305,2]
[366735310,1750425041390,-358.907453,0.00020305,2]
[366735311,1750425041400,-185.24086146,0.00020305,2]
[366735312,1750425041410,-404.11466656,0.00020305,2]
[366735313,1750425041420,-460.0,0.00020305,2]
[366735314,1750425041430,-460.0,0.00020305,2]
[366735315,1750425041439,-460.0,0.00020305,2]
[366735316,1750425041449,-460.0,0.00020305,2]
[366735317,1750425041459,-460.0,0.00020305,2]
[366735318,1750425041468,-460.0,0.00020305,2]
[366735319,1750425041477,-460.0,0.00020305,2]
[366735320,1750425041486,-460.0,0.00020305,2]
[366735321,1750425041496,-460.0,0.00020305,2]
[366735322,1750425041505,-430.0,0.00020305,2]
[366735323,1750425041515,-460.0,0.00020305,2]
[366735324,1750425041524,-463.74638605,0.00020305,2]
[366735325,1750425041533,-460.0,0.00020305,2]
[366735326,1750425041543,-460.0,0.00020305,2]
[366735328,1750425041552,-460.0,0.00020305,2]
[366735330,1750425041562,-460.0,0.00020305,2]
[366735332,1750425041571,-460.0,0.00020305,2]
[366735333,1750425041580,-460.0,0.00020305,2]
[366735335,1750425041593,-460.0,0.00020305,2]
[366735336,1750425041603,-460.0,0.00020305,2]
[366735337,1750425041612,-464.3987596,0.00020305,2]
[366735338,1750425041622,-460.0,0.00020305,2]
[366735339,1750425041632,-466.78449334,0.00020305,2]
[366735340,1750425041642,-460.0,0.00020305,2]
[366735341,1750425041652,-460.0,0.00020305,2]
[366735342,1750425041661,-465.23356415,0.00020305,2]
[366735343,1750425041671,-460.0,0.00020305,2]
[366735344,1750425041681,-433.47043636,0.00020305,2]
[366735345,1750425041691,-452.26415817,0.00020305,2]
[366735346,1750425041701,-151.0,0.00020305,2]
[366735347,1750425041710,-460.0,0.00020305,2]
[366735348,1750425041720,-460.0,0.00020305,2]
[366735349,1750425041729,-500.0,0.00020305,2]
[366735350,1750425041738,-460.0,0.00020305,2]
[366735351,1750425041749,-460.0,0.00020305,2]
[366735352,1750425041758,-460.0,0.00020305,2]
[366735353,1750425041767,-430.0,0.00020305,2]
[366735354,1750425041776,-223.19419844,0.00020305,2]
[366735355,1750425041786,-529.52517545,0.00020305,2]
[366735356,1750425041795,-318.09064611,0.00020305,2]
[366735357,1750425041804,-460.0,0.00020305,2]
[366735358,1750425041814,-460.0,0.00020305,2]
[366735359,1750425041823,-460.0,0.00020305,2]
[366735360,1750425041833,-319.47370716,0.00020305,2]
[366735361,1750425041842,-460.0,0.00020305,2]
[366735362,1750425041851,-460.0,0.00020305,2]
[366735363,1750425041861,-460.0,0.00020305,2]
[366735364,1750425041870,-460.0,0.00020305,2]
[366735365,1750425041879,-460.0,0.00020305,2]
[366735367,1750425041888,-460.0,0.00020305,2]
[366735368,1750425041898,-460.0,0.00020305,2]
[366735369,1750425041907,-460.0,0.00020305,2]
[366735370,1750425041916,-460.0,0.00020305,2]
[366735372,1750425041926,-460.0,0.00020305,2]
[366735374,1750425041936,-460.0,0.00020305,2]
[366735375,1750425041945,-489.49140972,0.00020305,2]
[366735376,1750425041955,-396.252502,0.00020305,2]
[366735377,1750425041964,-460.0,0.00020305,2]
[366735378,1750425041974,-460.0,0.00020305,2]
[366735379,1750425041984,-460.0,0.00020305,2]
[366735380,1750425041993,-151.0,0.00020305,2]
[366735381,1750425042003,-460.0,0.00020305,2]
[366735383,1750425042012,-521.271088,0.00020305,2]
[366735385,1750425042021,-460.0,0.00020305,2]
[366735386,1750425042031,-540.0,0.00020305,2]
[366735388,1750425042040,-460.0,0.00020305,2]
[366735390,1750425042049,-151.0,0.00020305,2]
[366735391,1750425042059,-151.0,0.00020305,2]
[366735393,1750425042069,-420.10144731,0.00020305,2]
[366735394,1750425042078,-151.0,0.00020305,2]
[366735395,1750425042087,-460.0,0.00020305,2]
[366735396,1750425042097,-460.0,0.00020305,2]
[366735397,1750425042106,-460.0,0.00020305,2]
[366735398,1750425042116,-460.0,0.00020305,2]
[366735399,1750425042126,-460.0,0.00020305,2]
[366735400,1750425042135,-460.0,0.00020305,2]
[366735401,1750425042144,-151.0,0.00020305,2]
[366735402,1750425042154,-460.0,0.00020305,2]
[366735403,1750425042163,-422.07496958,0.00020305,2]
[366735404,1750425042173,-254.06125883,0.00020305,2]
[366735405,1750425042183,-460.0,0.00020305,2]
[366735406,1750425042193,-460.0,0.00020305,2]
[366735407,1750425042203,-460.0,0.00020305,2]
[366735408,1750425042212,-460.0,0.00020305,2]
[366735409,1750425042222,-460.0,0.00020305,2]
[366735410,1750425042232,-460.0,0.00020305,2]
[366735411,1750425042243,-370.55234591,0.00020305,2]
[366735412,1750425042254,-460.0,0.00020305,2]
[366735413,1750425042264,-151.0,0.00020305,2]
[366735414,1750425042274,-151.0,0.00020305,2]
[366735415,1750425042284,-151.0,0.00020305,2]
[366735416,1750425042293,-500.0,0.00020305,2]
[366735417,1750425042303,-500.0,0.00020305,2]
[366735418,1750425042312,-500.0,0.00020305,2]
[366735419,1750425042322,-338.716032,0.00020305,2]
[366735420,1750425042332,-338.716032,0.00020305,2]
[366735421,1750425042342,-338.716032,0.00020305,2]
[366735422,1750425042351,-338.716032,0.00020305,2]
[366735423,1750425042360,-151.0,0.00020305,2]
[366735424,1750425042369,-151.0,0.00020305,2]
[366735425,1750425042378,-208.558794,0.00020305,2]
[366735426,1750425042388,-151.0,0.00020305,2]
[366735427,1750425042397,-151.0,0.00020305,2]
[366735428,1750425042406,-151.0,0.00020305,2]
[366735429,1750425042416,-151.0,0.00020305,2]
[366735430,1750425042426,-151.0,0.00020305,2]
[366735431,1750425042435,-151.0,0.00020305,2]
[366735432,1750425042445,-151.0,0.00020305,2]
[366735433,1750425042455,-151.0,0.00020305,2]
[366735434,1750425042464,-501.5,0.00020305,2]
[366735435,1750425042474,-501.5,0.00020305,2]
[366735436,1750425042485,-501.5,0.00020305,2]
[366735437,1750425042495,-501.5,0.00020305,2]
[366735438,1750425042505,-501.5,0.00020305,2]
[366735439,1750425042515,-501.71438733,0.00020305,2]
[366735440,1750425042525,-151.0,0.00020305,2]
[366735441,1750425042535,-460.0,0.00020306,2]
[366735442,1750425042545,-350.0,0.00020306,2]
[366735443,1750425042555,-460.0,0.00020306,2]
[366735444,1750425042565,-460.35013157,0.00020306,2]
[366735445,1750425042576,-460.63246716,0.00020306,2]
[366735446,1750425042588,-460.0,0.00020306,2]
[366735447,1750425042599,-203.64455972,0.00020306,2]
[366735448,1750425042610,-460.0,0.00020306,2]
[366735449,1750425042620,-460.0,0.00020306,2]
[366735450,1750425042630,-506.19059437,0.00020306,2]
[366735451,1750425042640,-460.0,0.00020306,2]
[366735453,1750425042651,-235.31253788,0.00020306,2]
[366735454,1750425042661,-460.86245214,0.00020306,2]
[366735455,1750425042672,-460.0,0.00020306,2]
[366735456,1750425042682,-460.0,0.00020306,2]
[366735457,1750425042692,-460.0,0.00020306,2]
[366735458,1750425042702,-460.88612342,0.00020306,2]
[366735459,1750425042712,-189.354735,0.00020306,2]
[366735460,1750425042722,-189.354735,0.00020306,2]
[366735462,1750425042732,-189.354735,0.00020306,2]
[366735464,1750425042742,-189.354735,0.00020306,2]
[366735466,1750425042751,-151.0,0.00020306,2]
[366735467,1750425042761,-228.256626,0.00020306,2]
[366735468,1750425042771,-228.256626,0.00020306,2]
[366735469,1750425042780,-151.0,0.00020306,2]
[366735470,1750425042790,-151.0,0.00020306,2]
[366735471,1750425042800,-151.0,0.00020306,2]
[366735472,1750425042810,-500.0,0.00020306,2]
[366735473,1750425042819,-500.0,0.00020306,2]
[366735474,1750425042829,-338.716032,0.00020306,2]
[366735475,1750425042839,-338.716032,0.00020306,2]
[366735476,1750425042849,-151.0,0.00020306,2]
[366735477,1750425042858,-151.0,0.00020306,2]
[366735479,1750425042868,-6200.73269064,0.00020307,2]
[366735480,1750425042878,-151.0,0.00020307,2]
[366735481,1750425042888,-151.0,0.00020307,2]
[366735482,1750425042898,-151.0,0.00020307,2]
[366735483,1750425042907,-151.0,0.00020307,2]
[366735484,1750425042917,-267.471325,0.00020307,2]
[366735485,1750425042927,-500.0,0.00020307,2]
[366735486,1750425042938,-151.912822,0.00020307,2]
[366735487,1750425042948,-151.0,0.00020308,2]
[366735488,1750425042958,-500.0,0.00020308,2]
[366735489,1750425042968,-500.0,0.00020308,2]
[366735490,1750425042978,-500.0,0.00020308,2]
[366735491,1750425042988,-500.0,0.00020308,2]
[366735492,1750425042998,-500.0,0.00020308,2]
[366735493,1750425043008,-388.2990528,0.00020308,2]
[366735494,1750425043018,-151.0,0.00020309,2]
[366735496,1750425043027,-215.061854,0.00020309,2]
[366735498,1750425043037,-151.0,0.00020309,2]
[366735500,1750425043047,-189.354735,0.00020309,2]
[366735501,1750425043057,-189.354735,0.00020309,2]
[366735502,1750425043067,-151.0,0.00020309,2]
[366735503,1750425043076,-228.256626,0.00020309,2]
[366735504,1750425043086,-151.0,0.00020309,2]
[366735505,1750425043096,-151.0,0.00020309,2]
[366735506,1750425043106,-151.0,0.00020309,2]
[366735507,1750425043116,-153.016553,0.00020309,2]
[366735508,1750425043126,-230.24231065,0.00020334,2]
[366735510,1750425043135,-151.41753838,0.00020334,2]
[366735512,1750425043145,-151.0,0.00020334,2]
[366735513,1750425043155,-151.0,0.00020334,2]
[366735515,1750425043164,-151.0,0.00020334,2]
[366735516,1750425043174,-151.0,0.00020334,2]
[366735517,1750425043184,-199.13380502,0.00020334,2]
[366735519,1750425043194,-151.0,0.00020334,2]
[366735521,1750425043203,-151.0,0.00020334,2]
[366735523,1750425043213,-151.0,0.00020334,2]
[366735525,1750425043223,-151.0,0.00020334,2]
[366735527,1750425043233,-151.0,0.00020334,2]
[366735529,1750425043243,-151.32566504,0.00020334,2]
[366735531,1750425043252,-151.99710973,0.00020334,2]
[366735533,1750425043262,-151.0,0.00020334,2]
[366735535,1750425043272,-151.49926672,0.00020334,2]
[366735537,1750425043280,-152.63117165,0.00020334,2]
[366735539,1750425043290,-151.0,0.00020334,2]
[366735541,1750425043299,-151.0,0.00020334,2]
[366735543,1750425043309,-151.0,0.00020334,2]
[366735545,1750425043319,-151.0,0.00020334,2]
[366735547,1750425043328,-226.30079361,0.00020334,2]
[366735549,1750425043338,-151.1443837,0.00020334,2]
[366735551,1750425043348,-151.0,0.00020334,2]
[366735553,1750425043358,-213.75946109,0.00020334,2]
[366735555,1750425043367,-151.0,0.00020361,2]
[366735557,1750425043377,-151.0,0.00020361,2]
[366735559,1750425043387,-231.04509601,0.00020361,2]
[366735561,1750425043397,-151.0,0.00020361,2]
[366735563,1750425043407,-151.0,0.00020361,2]
[366735565,1750425043417,-151.0,0.00020361,2]
[366735567,1750425043426,-151.0,0.00020361,2]
[366735569,1750425043435,-151.0,0.00020361,2]
[366735571,1750425043445,-500.0,0.00020373,2]
[366735573,1750425043455,-500.0,0.00020373,2]
[366735575,1750425043465,-151.0,0.00020373,2]
[366735577,1750425043474,-198.0,0.00020389,2]
[366735579,1750425043484,-198.0,0.00020389,2]
[366735580,1750425043494,-151.0,0.00020389,2]
[366735582,1750425043504,-151.0,0.00020389,2]
[366735584,1750425043514,-233.065671,0.00020389,2]
[366735586,1750425043524,-196.081962,0.00020389,2]
[366735589,1750425043534,-198.0,0.00020416,2]
[366735591,1750425043544,-151.0,0.00020416,2]
[366735593,1750425043554,-151.0,0.00020444,2]
[366735595,1750425043563,-245.0,0.00020471,2]
[366735596,1750425043573,-500.0,0.00020573,2]
[366735598,1750425043582,-500.0,0.00020573,2]
[366735600,1750425043595,-500.0,0.00020573,2]
[366735602,1750425043605,-501.69403857,0.00020573,2]
[366735604,1750425043615,-539.19147127,0.00020573,2]
[366735606,1750425043624,-500.0,0.00020573,2]
[366735608,1750425043634,-500.0,0.00020573,2]
[366735610,1750425043645,-600.0,0.00020573,2]
[366735612,1750425043655,-500.0,0.00020573,2]
[366735614,1750425043667,-500.0,0.00020573,2]
[366735616,1750425043677,-500.0,0.00020573,2]
[366735618,1750425043686,-460.0,0.00020573,2]
[366735620,1750425043696,-460.0,0.00020573,2]
[366735622,1750425043707,-460.0,0.00020573,2]
[366735624,1750425043717,-460.0,0.00020573,2]
[366735626,1750425043726,-380.0,0.00020573,2]
[366735628,1750425043736,-460.0,0.00020573,2]
[366735630,1750425043747,-460.0,0.00020573,2]
[366735632,1750425043756,-431.92082937,0.00020573,2]
[366735634,1750425043766,-460.0,0.00020573,2]
[366735636,1750425043776,-460.0,0.00020573,2]
[366735638,1750425043786,-190.32827467,0.00020573,2]
[366735640,1750425043796,-460.0,0.00020573,2]
[366735642,1750425043806,-460.0,0.00020573,2]
[366735644,1750425043815,-1123.25,0.00020573,2]
[366735646,1750425043826,-1507.47,0.00020573,2]
[366735648,1750425043835,-460.0,0.00020573,2]
[366735650,1750425043846,-460.0,0.00020573,2]
[366735652,1750425043856,-460.0,0.00020573,2]
[366735654,1750425043865,-460.0,0.00020573,2]
[366735656,1750425043875,-460.0,0.00020573,2]
[366735658,1750425043885,-460.0,0.00020573,2]
[366735659,1750425043895,-430.0,0.00020573,2]
[366735671,1750425043904,-2173.62,0.00020573,2]
[366735676,1750425044086,-2896.44,0.00020573,2]
[366735678,1750425044096,-657.81,0.00020573,2]
[366735680,1750425044106,-474.57,0.00020573,2]
[366735682,1750425044116,-263.90852847,0.00020573,2]
[366735684,1750425044126,-460.0,0.00020573,2]
[366735686,1750425044135,-460.0,0.00020573,2]
[366735688,1750425044145,-460.0,0.00020573,2]
[366735690,1750425044154,-460.0,0.00020573,2]
[366735692,1750425044163,-460.0,0.00020573,2]
[366735694,1750425044173,-460.0,0.00020573,2]
[366735696,1750425044183,-460.0,0.00020573,2]
[366735698,1750425044193,-422.93734986,0.00020574,2]
[366735700,1750425044203,-460.0,0.00020574,2]
[366735702,1750425044213,-460.0,0.00020574,2]
[366735704,1750425044222,-460.0,0.00020574,2]
[366735706,1750425044232,-440.0,0.00020574,2]
[366735708,1750425044242,-446.55874631,0.00020574,2]
[366735711,1750425044251,-460.0,0.00020574,2]
[366735713,1750425044261,-375.56917158,0.00020574,2]
[366735715,1750425044270,-385.4327202,0.00020574,2]
[366735717,1750425044280,-460.0,0.00020574,2]
[366735719,1750425044289,-511.48247804,0.00020574,2]
[366735721,1750425044299,-460.0,0.00020574,2]
[366735723,1750425044308,-460.0,0.00020574,2]
[366735725,1750425044318,-2410.57,0.00020574,2]
[366735727,1750425044327,-460.0,0.00020574,2]
[366735729,1750425044338,-3080.98,0.00020574,2]
[366735731,1750425044348,-492.92,0.00020574,2]
[366735733,1750425044357,-848.94,0.00020574,2]
[366735735,1750425044368,-1447.9,0.00020574,2]
[366735737,1750425044379,-460.0,0.00020574,2]
[366735739,1750425044388,-1397.11,0.00020574,2]
[366735741,1750425044398,-460.0,0.00020574,2]
[366735743,1750425044408,-460.0,0.00020574,2]
[366735745,1750425044418,-460.0,0.00020574,2]
[366735747,1750425044427,-460.0,0.00020574,2]
[366735749,1750425044437,-4946.39,0.00020574,2]
[366735751,1750425044447,-460.0,0.00020574,2]
[366735753,1750425044459,-460.0,0.00020574,2]
[366735755,1750425044469,-700.82,0.00020574,2]
[366735757,1750425044478,-460.0,0.00020574,2]
[366735758,1750425044488,-587.34,0.00020574,2]
[366735760,1750425044499,-460.0,0.00020574,2]
[366735762,1750425044509,-460.0,0.00020574,2]
[366735764,1750425044519,-460.0,0.00020574,2]
[366735766,1750425044530,-460.0,0.00020574,2]
[366735768,1750425044540,-862.74,0.00020574,2]
[366735770,1750425044550,-460.0,0.00020574,2]
[366735772,1750425044560,-460.0,0.00020574,2]
[366735774,1750425044570,-460.0,0.00020574,2]
[366735776,1750425044580,-460.0,0.00020574,2]
[366735778,1750425044590,-674.63,0.00020574,2]
[366735780,1750425044600,-625.31,0.00020574,2]
[366735782,1750425044609,-460.0,0.00020574,2]
[366735784,1750425044619,-1107.37,0.00020574,2]
[366735786,1750425044631,-460.0,0.00020574,2]
[366735787,1750425044641,-506.13,0.00020574,2]
[366735790,1750425044651,-460.0,0.00020574,2]
[366735791,1750425044661,-707.63,0.00020574,2]
[366735793,1750425044671,-460.0,0.00020574,2]
[366735795,1750425044681,-460.0,0.00020574,2]
[366735797,1750425044690,-460.0,0.00020575,2]
[366735799,1750425044700,-460.0,0.00020575,2]
[366735801,1750425044710,-248.5506001,0.00020575,2]
[366735803,1750425044720,-440.0,0.00020575,2]
[366735805,1750425044730,-324.71540448,0.00020575,2]
[366735807,1750425044740,-515.43080002,0.00020575,2]
[366735809,1750425044750,-460.0,0.00020575,2]
[366735811,1750425044759,-402.3280385,0.00020575,2]
[366735813,1750425044771,-460.0,0.00020575,2]
[366735815,1750425044781,-460.0,0.00020575,2]
[366735818,1750425044791,-460.0,0.00020575,2]
[366735820,1750425044802,-454.79897383,0.00020575,2]
[366735822,1750425044812,-460.0,0.00020575,2]
[366735824,1750425044822,-255.91444143,0.00020575,2]
[366735826,1750425044832,-460.0,0.00020575,2]
[366735828,1750425044842,-151.10124978,0.00020575,2]
[366735830,1750425044851,-307.3175897,0.00020575,2]
[366735831,1750425044860,-460.0,0.00020575,2]
[366735833,1750425044870,-460.0,0.00020575,2]
[366735835,1750425044879,-430.0,0.00020575,2]
[366735837,1750425044889,-460.0,0.00020575,2]
[366735839,1750425044899,-460.0,0.00020575,2]
[366735841,1750425044909,-460.0,0.00020575,2]
[366735843,1750425044918,-370.0,0.00020575,2]
[366735845,1750425044928,-460.0,0.00020575,2]
[366735846,1750425044937,-460.0,0.00020575,2]
[366735848,1750425044947,-460.0,0.00020575,2]
[366735850,1750425044956,-321.41348252,0.00020575,2]
[366735852,1750425044966,-460.0,0.00020575,2]
[366735854,1750425044975,-219.98432115,0.00020575,2]
[366735856,1750425044984,-460.0,0.00020575,2]
[366735858,1750425044994,-446.35988915,0.00020575,2]
[366735860,1750425045004,-460.0,0.00020575,2]
[366735862,1750425045013,-464.13054868,0.00020575,2]
[366735864,1750425045023,-460.0,0.00020575,2]
[366735866,1750425045032,-460.0,0.00020575,2]
[366735868,1750425045042,-340.0,0.00020575,2]
[366735870,1750425045051,-460.0,0.00020575,2]
[366735872,1750425045061,-460.0,0.00020575,2]
[366735874,1750425045071,-460.0,0.00020575,2]
[366735876,1750425045080,-460.0,0.00020575,2]
[366735878,1750425045090,-417.58921828,0.00020575,2]
[366735880,1750425045099,-460.0,0.00020575,2]
[366735882,1750425045109,-412.59673783,0.00020575,2]
[366735884,1750425045118,-460.0,0.00020575,2]
[366735885,1750425045127,-460.0,0.00020575,2]
[366735887,1750425045137,-460.0,0.00020575,2]
[366735889,1750425045146,-460.0,0.00020575,2]
[366735891,1750425045156,-460.0,0.00020575,2]
[366735893,1750425045165,-460.0,0.00020575,2]
[366735895,1750425045175,-460.0,0.00020575,2]
[366735897,1750425045184,-460.0,0.00020575,2]
[366735899,1750425045194,-460.0,0.00020575,2]
[366735901,1750425045204,-460.0,0.00020575,2]
[366735903,1750425045214,-403.18266406,0.00020575,2]
[366735905,1750425045223,-460.0,0.00020575,2]
[366735907,1750425045233,-460.0,0.00020575,2]
[366735909,1750425045243,-460.0,0.00020575,2]
[366735911,1750425045253,-430.0,0.00020575,2]
[366735913,1750425045263,-460.0,0.00020575,2]
[366735915,1750425045273,-430.0,0.00020575,2]
[366735917,1750425045282,-460.0,0.00020575,2]
[366735919,1750425045292,-460.0,0.00020575,2]
[366735921,1750425045302,-460.0,0.00020575,2]
[366735923,1750425045312,-460.0,0.00020575,2]
[366735925,1750425045322,-460.0,0.00020575,2]
[366735927,1750425045332,-460.0,0.00020575,2]
[366735929,1750425045342,-236.4679951,0.00020575,2]
[366735931,1750425045353,-443.29796107,0.00020575,2]
[366735933,1750425045362,-205.53367335,0.00020575,2]
[366735935,1750425045372,-460.0,0.00020575,2]
[366735937,1750425045382,-494.38,0.00020575,2]
[366735939,1750425045392,-194.90047896,0.00020575,2]
[366735941,1750425045401,-460.0,0.00020575,2]
[366735943,1750425045410,-460.0,0.00020575,2]
[366735944,1750425045420,-460.0,0.00020575,2]
[366735946,1750425045430,-307.74443807,0.00020575,2]
[366735948,1750425045439,-460.0,0.00020575,2]
[366735950,1750425045449,-460.0,0.00020575,2]
[366735952,1750425045459,-460.0,0.00020575,2]
[366735954,1750425045469,-460.0,0.00020575,2]
[366735957,1750425045480,-460.0,0.00020575,2]
[366735958,1750425045490,-201.14285866,0.00020575,2]
[366735960,1750425045499,-339.55612703,0.00020575,2]
[366735962,1750425045508,-460.0,0.00020575,2]
[366735964,1750425045519,-286.61897784,0.00020575,2]
[366735966,1750425045528,-460.0,0.00020575,2]
[366735968,1750425045538,-440.0,0.00020575,2]
[366735970,1750425045547,-460.0,0.00020575,2]
[366735972,1750425045557,-460.0,0.00020575,2]
[366735974,1750425045568,-460.0,0.00020575,2]
[366735976,1750425045578,-466.05355842,0.00020575,2]
[366735978,1750425045589,-460.0,0.00020575,2]
[366735980,1750425045601,-460.0,0.00020575,2]
[366735983,1750425045611,-460.0,0.00020575,2]
[366735985,1750425045621,-504.37,0.00020575,2]
[366735987,1750425045631,-460.0,0.00020575,2]
[366735989,1750425045641,-460.0,0.00020575,2]
[366735991,1750425045651,-276.7919228,0.00020575,2]
[366735993,1750425045661,-460.0,0.00020575,2]
[366735995,1750425045672,-338.716032,0.00020575,2]
[366735997,1750425045683,-460.0,0.00020575,2]
[366735999,1750425045693,-460.0,0.00020575,2]
[366736001,1750425045702,-338.716032,0.00020575,2]
[366736003,1750425045712,-412.33709243,0.00020575,2]
[366736005,1750425045722,-460.0,0.00020575,2]
[366736007,1750425045731,-460.0,0.00020575,2]
[366736009,1750425045742,-272.82841763,0.00020575,2]
[366736011,1750425045752,-460.0,0.00020575,2]
[366736013,1750425045762,-534.36220063,0.00020575,2]
[366736015,1750425045771,-460.0,0.00020575,2]
[366736017,1750425045781,-460.0,0.00020575,2]
[366736019,1750425045792,-460.0,0.00020575,2]
[366736021,1750425045801,-151.0,0.00020575,2]
[366736023,1750425045811,-460.0,0.00020575,2]
[366736024,1750425045821,-460.0,0.00020575,2]
[366736026,1750425045830,-460.0,0.00020575,2]
[366736028,1750425045840,-460.0,0.00020575,2]
[366736030,1750425045855,-460.0,0.00020575,2]
[366736032,1750425045866,-460.0,0.00020575,2]
[366736034,1750425045876,-460.0,0.00020575,2]
[366736036,1750425045886,-573.44,0.00020575,2]
[366736038,1750425045896,-460.0,0.00020575,2]
[366736040,1750425045905,-460.0,0.00020575,2]
[366736042,1750425045916,-460.0,0.00020575,2]
[366736044,1750425045926,-460.0,0.00020575,2]
[366736046,1750425045935,-460.0,0.00020575,2]
[366736048,1750425045944,-500.0,0.00020575,2]
[366736050,1750425045953,-460.0,0.00020575,2]
[366736052,1750425045963,-151.0,0.00020575,2]
[366736054,1750425045972,-460.0,0.00020575,2]
[366736055,1750425045982,-460.0,0.00020575,2]
[366736057,1750425045991,-151.0,0.00020575,2]
[366736059,1750425046001,-151.0,0.00020575,2]
[366736061,1750425046010,-460.0,0.00020575,2]
[366736063,1750425046020,-460.0,0.00020575,2]
[366736065,1750425046030,-460.0,0.00020575,2]
[366736067,1750425046041,-373.15406126,0.00020575,2]
[366736069,1750425046050,-460.0,0.00020575,2]
[366736071,1750425046061,-460.0,0.00020575,2]
[366736073,1750425046071,-460.0,0.00020575,2]
[366736075,1750425046080,-460.0,0.00020575,2]
[366736077,1750425046090,-1254.58,0.00020575,2]
[366736079,1750425046099,-608.57,0.00020575,2]
[366736081,1750425046108,-460.0,0.00020575,2]
[366736082,1750425046117,-460.0,0.00020575,2]
[366736084,1750425046127,-460.0,0.00020575,2]
[366736086,1750425046136,-460.0,0.00020575,2]
[366736088,1750425046146,-460.0,0.00020575,2]
[366736090,1750425046156,-440.0,0.00020575,2]
[366736093,1750425046166,-508.74815802,0.00020575,2]
[366736095,1750425046175,-460.0,0.00020575,2]
[366736096,1750425046185,-460.0,0.00020575,2]
[366736099,1750425046195,-460.0,0.00020575,2]
[366736100,1750425046204,-460.0,0.00020575,2]
[366736102,1750425046214,-460.0,0.00020575,2]
[366736104,1750425046224,-460.0,0.00020575,2]
[366736106,1750425046234,-378.46524953,0.00020575,2]
[366736109,1750425046244,-460.0,0.00020575,2]
[366736110,1750425046254,-485.71,0.00020575,2]
[366736112,1750425046263,-549.69,0.00020575,2]